[Event "*** Qualifier 2: Titled Tuesday 3|2 Blitz"]
[Site "Chess.com"]
[Date "2017.04.11"]
[Round "5"]
[White "Maitreia"]
[Black "GrigorGrigorov"]
[Result "0-1"]
[WhiteElo "2495"]
[BlackElo "2503"]
[TimeControl "180+2"]
[EndTime "14:08:03 PDT"]
[Termination "GrigorGrigorov won by resignation"]

1. c4 {[%clk 0:03:02]} 1... g6 {[%clk 0:02:58.6]} 2. g3 {[%clk 0:03:02.2]} 2...
Bg7 {[%clk 0:02:59.1]} 3. Bg2 {[%clk 0:03:03.9]} 3... c5 {[%clk 0:03:00.3]} 4.
Nc3 {[%clk 0:03:04.6]} 4... Nc6 {[%clk 0:03:01.4]} 5. Nf3 {[%clk 0:03:06.1]}
5... e6 {[%clk 0:03:00.7]} 6. d4 {[%clk 0:03:05.5]} 6... cxd4 {[%clk 0:02:53]}
7. Nb5 {[%clk 0:03:04.9]} 7... d6 {[%clk 0:02:54]} 8. Nfxd4 {[%clk 0:03:03.8]}
8... Nxd4 {[%clk 0:02:50.2]} 9. Nxd4 {[%clk 0:03:05.7]} 9... a6 {[%clk
0:02:44.9]} 10. O-O {[%clk 0:03:05]} 10... Ne7 {[%clk 0:02:43.7]} 11. b3 {[%clk
0:03:04.4]} 11... O-O {[%clk 0:02:43.6]} 12. Bb2 {[%clk 0:03:05.2]} 12... Rb8
{[%clk 0:02:44]} 13. a4 {[%clk 0:02:59.5]} 13... b6 {[%clk 0:02:36.9]} 14. Qd2
{[%clk 0:02:52.1]} 14... Bb7 {[%clk 0:02:37.5]} 15. Rfd1 {[%clk 0:02:53.1]}
15... Bxg2 {[%clk 0:02:37.6]} 16. Kxg2 {[%clk 0:02:55]} 16... Rb7 {[%clk
0:02:38.6]} 17. Nf3 {[%clk 0:02:43.5]} 17... Bxb2 {[%clk 0:02:31.6]} 18. Qxb2
{[%clk 0:02:45.4]} 18... Rd7 {[%clk 0:02:32.8]} 19. Rd2 {[%clk 0:02:34.6]} 19...
Nc6 {[%clk 0:02:07.5]} 20. Rad1 {[%clk 0:02:34]} 20... Qe7 {[%clk 0:02:08.4]}
21. Nd4 {[%clk 0:02:22.4]} 21... Nxd4 {[%clk 0:02:03.9]} 22. Rxd4 {[%clk
0:02:24.3]} 22... Rc8 {[%clk 0:01:59.8]} 23. Qd2 {[%clk 0:02:19.5]} 23... Rc6
{[%clk 0:01:59.7]} 24. a5 {[%clk 0:02:20.9]} 24... Qd8 {[%clk 0:01:50]} 25. axb6
{[%clk 0:02:12.5]} 25... Qxb6 {[%clk 0:01:50.8]} 26. Qh6 {[%clk 0:02:09.4]}
26... Qxb3 {[%clk 0:01:44.5]} 27. R1d3 {[%clk 0:02:03.3]} 27... Qb7 {[%clk
0:01:40.8]} 28. f3 {[%clk 0:01:59.9]} 28... a5 {[%clk 0:01:24.2]} 29. Rh4 {[%clk
0:01:59.5]} 29... f5 {[%clk 0:01:24.7]} 30. g4 {[%clk 0:01:45.3]} 30... Rxc4
{[%clk 0:01:17.4]} 31. gxf5 {[%clk 0:01:43.4]} 31... Rxh4 {[%clk 0:01:16.8]} 32.
Qxh4 {[%clk 0:01:45.3]} 32... gxf5 {[%clk 0:01:17.7]} 33. Qf6 {[%clk 0:01:39.8]}
33... Rg7+ {[%clk 0:01:16.3]} 34. Kh3 {[%clk 0:01:40.9]} 34... Qd7 {[%clk
0:01:01.9]} 35. Rb3 {[%clk 0:01:32.5]} 35... Qe8 {[%clk 0:01:00.7]} 36. Kh4
{[%clk 0:01:26.5]} 36... Rg6 {[%clk 0:00:32.5]} 37. Qd4 {[%clk 0:01:27.5]} 37...
Qf8 {[%clk 0:00:29.4]} 38. Kh3 {[%clk 0:01:07.3]} 38... Qh6+ {[%clk 0:00:26.3]}
39. Qh4 {[%clk 0:01:08.4]} 39... Qxh4+ {[%clk 0:00:25.2]} 40. Kxh4 {[%clk
0:01:10.3]} 40... Rg7 {[%clk 0:00:18.9]} 41. Rb8+ {[%clk 0:01:01.4]} 41... Kf7
{[%clk 0:00:19.8]} 42. Ra8 {[%clk 0:01:02.1]} 42... Kf6 {[%clk 0:00:19.4]} 43.
Kh3 {[%clk 0:00:57.6]} 43... Rb7 {[%clk 0:00:17.5]} 44. Rxa5 {[%clk 0:00:51.8]}
44... Rb2 {[%clk 0:00:18.3]} 45. e4 {[%clk 0:00:46.5]} 45... fxe4 {[%clk
0:00:17.9]} 46. fxe4 {[%clk 0:00:48.4]} 46... Rb4 {[%clk 0:00:13.6]} 47. e5+
{[%clk 0:00:42.4]} 47... dxe5 {[%clk 0:00:14.8]} 48. Kg3 {[%clk 0:00:38.5]}
48... Rf4 {[%clk 0:00:14.3]} 49. Ra8 {[%clk 0:00:35.6]} 49... h5 {[%clk
0:00:09.6]} 50. Rh8 {[%clk 0:00:26.3]} 50... Kg5 {[%clk 0:00:07.3]} 51. Rg8+
{[%clk 0:00:25.1]} 51... Kf5 {[%clk 0:00:08]} 52. Rh8 {[%clk 0:00:21.5]} 52...
h4+ {[%clk 0:00:09.1]} 53. Kg2 {[%clk 0:00:18.5]} 53... Ke4 {[%clk 0:00:07.2]}
54. Re8 {[%clk 0:00:17.9]} 54... Ke3 {[%clk 0:00:07.7]} 55. Rxe6 {[%clk
0:00:18.3]} 55... e4 {[%clk 0:00:09.1]} 56. Re8 {[%clk 0:00:17.2]} 56... Rf3
{[%clk 0:00:08.4]} 57. h3 {[%clk 0:00:13.9]} 57... Rg3+ {[%clk 0:00:09.1]} 58.
Kh2 {[%clk 0:00:14.8]} 58... Kf3 {[%clk 0:00:09.3]} 59. Rf8+ {[%clk 0:00:15.4]}
59... Ke2 {[%clk 0:00:09.2]} 60. Rh8 {[%clk 0:00:17.3]} 60... Kf2 {[%clk
0:00:07.6]} 61. Rxh4 {[%clk 0:00:19.2]} 61... e3 {[%clk 0:00:08.8]} 62. Rf4+
{[%clk 0:00:19.5]} 62... Rf3 {[%clk 0:00:10]} 63. Ra4 {[%clk 0:00:18.8]} 63...
e2 {[%clk 0:00:10.9]} 64. Ra2 {[%clk 0:00:19]} 64... Kf1 {[%clk 0:00:11.9]} 65.
Ra1+ {[%clk 0:00:19.4]} 65... e1=Q {[%clk 0:00:12.6]} 66. Rxe1+ {[%clk
0:00:21.3]} 66... Kxe1 {[%clk 0:00:14.1]} 67. Kg2 {[%clk 0:00:23.2]} 67... Ke2
{[%clk 0:00:15.4]} 68. h4 {[%clk 0:00:24.3]} 68... Ke3 {[%clk 0:00:16.7]} 69. h5
{[%clk 0:00:25.3]} 69... Rf5 {[%clk 0:00:17.8]} 70. h6 {[%clk 0:00:27.2]} 70...
Rh5 {[%clk 0:00:18.6]} 71. h7 {[%clk 0:00:28.2]} 71... Rxh7 {[%clk 0:00:19.6]}
0-1

[Event "*** Qualifier 2: Titled Tuesday 3|2 Blitz"]
[Site "Chess.com"]
[Date "2017.04.11"]
[Round "5"]
[White "RobertoJBM"]
[Black "Konavets"]
[Result "0-1"]
[WhiteElo "2417"]
[BlackElo "2595"]
[TimeControl "180+2"]
[EndTime "14:09:21 PDT"]
[Termination "Konavets won on time"]

1. d4 {[%clk 0:03:02]} 1... Nf6 {[%clk 0:02:58.2]} 2. Nc3 {[%clk 0:03:03.9]}
2... d5 {[%clk 0:02:56.8]} 3. Bg5 {[%clk 0:03:04.3]} 3... c6 {[%clk 0:02:58.5]}
4. Qd2 {[%clk 0:03:04.7]} 4... Qb6 {[%clk 0:02:58.1]} 5. Rb1 {[%clk 0:02:53.9]}
5... Bf5 {[%clk 0:02:58.3]} 6. f3 {[%clk 0:02:54.7]} 6... h6 {[%clk 0:02:56.2]}
7. Bh4 {[%clk 0:02:54.4]} 7... Nbd7 {[%clk 0:02:48.8]} 8. e3 {[%clk 0:02:54.8]}
8... e5 {[%clk 0:02:46.8]} 9. Bd3 {[%clk 0:02:55.4]} 9... exd4 {[%clk
0:02:45.2]} 10. exd4 {[%clk 0:02:54.1]} 10... Qxd4 {[%clk 0:02:42.5]} 11. Bxf5
{[%clk 0:02:51.4]} 11... Qxh4+ {[%clk 0:02:42.1]} 12. g3 {[%clk 0:02:52.5]}
12... Qb4 {[%clk 0:02:42.3]} 13. Bxd7+ {[%clk 0:02:47.7]} 13... Kxd7 {[%clk
0:02:38]} 14. Nge2 {[%clk 0:02:48.3]} 14... Qb6 {[%clk 0:02:26.6]} 15. Kf1
{[%clk 0:02:45.8]} 15... Re8 {[%clk 0:02:25.6]} 16. Kg2 {[%clk 0:02:46.4]} 16...
Bd6 {[%clk 0:02:18.4]} 17. Rhe1 {[%clk 0:02:39.4]} 17... Qe3 {[%clk 0:02:18.2]}
18. Qd1 {[%clk 0:02:39.2]} 18... h5 {[%clk 0:02:18.7]} 19. Nd4 {[%clk
0:02:20.5]} 19... Qxe1 {[%clk 0:02:10.8]} 20. Qxe1 {[%clk 0:02:22.4]} 20... Rxe1
{[%clk 0:02:11.7]} 21. Rxe1 {[%clk 0:02:24]} 21... g6 {[%clk 0:02:13.6]} 22. Re2
{[%clk 0:02:23.9]} 22... Re8 {[%clk 0:02:12.6]} 23. Rxe8 {[%clk 0:02:24.2]}
23... Nxe8 {[%clk 0:02:09.8]} 24. f4 {[%clk 0:02:26.1]} 24... Ng7 {[%clk
0:02:10.9]} 25. Nce2 {[%clk 0:02:25]} 25... Ne6 {[%clk 0:02:11.5]} 26. c3 {[%clk
0:02:24.9]} 26... c5 {[%clk 0:02:12.1]} 27. Nxe6 {[%clk 0:02:19.1]} 27... Kxe6
{[%clk 0:02:12.3]} 28. Kf3 {[%clk 0:02:20.1]} 28... b5 {[%clk 0:02:12.8]} 29. b3
{[%clk 0:02:20.3]} 29... a5 {[%clk 0:02:13.6]} 30. h3 {[%clk 0:02:19.9]} 30...
b4 {[%clk 0:02:14.8]} 31. g4 {[%clk 0:02:08.2]} 31... hxg4+ {[%clk 0:02:14.9]}
32. hxg4 {[%clk 0:02:08.5]} 32... Kd7 {[%clk 0:02:16.4]} 33. cxb4 {[%clk
0:01:55.8]} 33... axb4 {[%clk 0:02:15.3]} 34. Nc1 {[%clk 0:01:55.7]} 34... c4
{[%clk 0:02:15.3]} 35. Ne2 {[%clk 0:01:56.5]} 35... Bc5 {[%clk 0:02:16]} 36. g5
{[%clk 0:01:49.4]} 36... Ke6 {[%clk 0:02:15]} 37. Ng3 {[%clk 0:01:46.6]} 37...
Kd6 {[%clk 0:02:11.1]} 38. Ke2 {[%clk 0:01:42.4]} 38... Kc6 {[%clk 0:02:10.1]}
39. Kd2 {[%clk 0:01:42.4]} 39... Bd6 {[%clk 0:02:06.6]} 40. Ne2 {[%clk
0:01:42.5]} 40... Kc5 {[%clk 0:02:06.7]} 41. Ke3 {[%clk 0:01:42.6]} 41... Bc7
{[%clk 0:01:58.4]} 42. Ng1 {[%clk 0:01:28.8]} 42... c3 {[%clk 0:01:19.8]} 43.
Ne2 {[%clk 0:01:22.8]} 43... d4+ {[%clk 0:01:13.7]} 44. Ke4 {[%clk 0:01:18.9]}
44... d3 {[%clk 0:00:27.9]} 45. Kxd3 {[%clk 0:01:19.5]} 45... Kd5 {[%clk
0:00:29.3]} 46. Ke3 {[%clk 0:01:07.8]} 46... Bb6+ {[%clk 0:00:28.3]} 47. Kd3
{[%clk 0:01:09.1]} 47... Bf2 {[%clk 0:00:28.9]} 48. a3 {[%clk 0:01:08.4]} 48...
bxa3 {[%clk 0:00:28.2]} 49. Nxc3+ {[%clk 0:01:09.5]} 49... Kc5 {[%clk
0:00:29.7]} 50. Na2 {[%clk 0:00:51.9]} 50... Be1 {[%clk 0:00:26.8]} 51. Ke4
{[%clk 0:00:51.7]} 51... Bd2 {[%clk 0:00:26]} 52. Ke5 {[%clk 0:00:52.5]} 52...
Be3 {[%clk 0:00:24.4]} 53. Ke4 {[%clk 0:00:53.5]} 53... Bg1 {[%clk 0:00:23.6]}
54. Ke5 {[%clk 0:00:53.3]} 54... Bh2 {[%clk 0:00:24.8]} 55. Ke4 {[%clk
0:00:52.3]} 55... Kd6 {[%clk 0:00:23.9]} 56. Nc3 {[%clk 0:00:51.8]} 56... Kc6
{[%clk 0:00:25.1]} 57. Na2 {[%clk 0:00:49.9]} 57... Bg1 {[%clk 0:00:26.1]} 58.
Nb4+ {[%clk 0:00:49.4]} 58... Kd6 {[%clk 0:00:26]} 59. Na2 {[%clk 0:00:51.3]}
59... Bb6 {[%clk 0:00:26.5]} 60. Nc3 {[%clk 0:00:52.1]} 60... Kc5 {[%clk
0:00:27.7]} 61. Na2 {[%clk 0:00:52.6]} 61... Bc7 {[%clk 0:00:29]} 62. Ke3 {[%clk
0:00:52.1]} 62... Bb8 {[%clk 0:00:26.6]} 63. Ke4 {[%clk 0:00:52.7]} 63... Bd6
{[%clk 0:00:27.8]} 64. Ke3 {[%clk 0:00:53.9]} 64... Bf8 {[%clk 0:00:29]} 65. Ke4
{[%clk 0:00:55.1]} 65... Bg7 {[%clk 0:00:30.3]} 66. Ke3 {[%clk 0:00:53.4]} 66...
Bb2 {[%clk 0:00:27.9]} 67. Ke4 {[%clk 0:00:54.6]} 67... Kc6 {[%clk 0:00:24]} 68.
Nb4+ {[%clk 0:00:54.5]} 68... Kb5 {[%clk 0:00:25.3]} 69. Na2 {[%clk 0:00:56.2]}
69... Kc5 {[%clk 0:00:26.5]} 70. Ke3 {[%clk 0:00:56.4]} 70... Kd5 {[%clk
0:00:26.3]} 71. Nb4+ {[%clk 0:00:55.7]} 71... Ke6 {[%clk 0:00:27.2]} 72. Ke4
{[%clk 0:00:54.9]} 72... Bc3 {[%clk 0:00:28.3]} 73. Na2 {[%clk 0:00:54.6]} 73...
Bd2 {[%clk 0:00:29.5]} 74. b4 {[%clk 0:00:37.3]} 74... Kd6 {[%clk 0:00:29.4]}
75. b5 {[%clk 0:00:26.6]} 75... Kc5 {[%clk 0:00:28.7]} 76. Ke5 {[%clk
0:00:27.4]} 76... Kxb5 {[%clk 0:00:29.8]} 77. Kf6 {[%clk 0:00:28.6]} 77... Bxf4
{[%clk 0:00:24.9]} 78. Kxf7 {[%clk 0:00:29.9]} 78... Bxg5 {[%clk 0:00:26.3]} 79.
Kxg6 {[%clk 0:00:31.4]} 79... Bd2 {[%clk 0:00:28]} 80. Kf5 {[%clk 0:00:31.8]}
80... Kc4 {[%clk 0:00:29.4]} 81. Ke4 {[%clk 0:00:33.3]} 81... Kb3 {[%clk
0:00:31.1]} 0-1

[Event "*** Qualifier 2: Titled Tuesday 3|2 Blitz"]
[Site "Chess.com"]
[Date "2017.04.11"]
[Round "5"]
[White "Spartakus1975"]
[Black "Vamostodorecto"]
[Result "1-0"]
[WhiteElo "2536"]
[BlackElo "2326"]
[TimeControl "180+2"]
[EndTime "14:10:08 PDT"]
[Termination "Spartakus1975 won on time"]

1. e4 {[%clk 0:03:02]} 1... e5 {[%clk 0:03:00.9]} 2. Nf3 {[%clk 0:03:02.1]} 2...
Nc6 {[%clk 0:03:01.6]} 3. Bb5 {[%clk 0:03:02]} 3... a6 {[%clk 0:03:02.6]} 4.
Bxc6 {[%clk 0:03:03]} 4... dxc6 {[%clk 0:03:03.1]} 5. O-O {[%clk 0:03:04.5]}
5... f6 {[%clk 0:03:04]} 6. d4 {[%clk 0:03:05]} 6... Bg4 {[%clk 0:03:04.6]} 7.
c3 {[%clk 0:03:02.3]} 7... Bd6 {[%clk 0:03:01.6]} 8. Be3 {[%clk 0:03:03]} 8...
Ne7 {[%clk 0:03:00.3]} 9. Nbd2 {[%clk 0:03:03.9]} 9... Ng6 {[%clk 0:02:36]} 10.
Qb3 {[%clk 0:03:00.1]} 10... b5 {[%clk 0:02:10.6]} 11. a4 {[%clk 0:02:30.9]}
11... Qd7 {[%clk 0:02:00.9]} 12. c4 {[%clk 0:02:11.6]} 12... Be6 {[%clk
0:01:42.2]} 13. axb5 {[%clk 0:02:12.3]} 13... cxb5 {[%clk 0:01:43]} 14. d5
{[%clk 0:02:13.6]} 14... Bg4 {[%clk 0:01:30.8]} 15. cxb5 {[%clk 0:02:05.2]}
15... O-O {[%clk 0:01:26]} 16. bxa6 {[%clk 0:02:02.7]} 16... f5 {[%clk
0:01:25.3]} 17. exf5 {[%clk 0:01:58.8]} 17... Qxf5 {[%clk 0:01:25.9]} 18. Qc4
{[%clk 0:01:51.3]} 18... Qh5 {[%clk 0:01:10.1]} 19. Ra4 {[%clk 0:01:41.9]} 19...
e4 {[%clk 0:01:05.9]} 20. Qxe4 {[%clk 0:00:58]} 20... Bxf3 {[%clk 0:00:39.4]}
21. Nxf3 {[%clk 0:00:55]} 21... Rxf3 {[%clk 0:00:37.8]} 22. g3 {[%clk
0:00:54.7]} 22... Ne5 {[%clk 0:00:26.9]} 23. h4 {[%clk 0:00:23.2]} 23... Qg6
{[%clk 0:00:23.8]} 24. Bf4 {[%clk 0:00:20.4]} 24... Qxe4 {[%clk 0:00:19.9]} 25.
Rxe4 {[%clk 0:00:21.3]} 25... Nd3 {[%clk 0:00:19.5]} 26. Kg2 {[%clk 0:00:18.6]}
26... Rxf4 {[%clk 0:00:18.4]} 27. gxf4 {[%clk 0:00:19.1]} 27... Nxf4+ {[%clk
0:00:20.3]} 28. Kf3 {[%clk 0:00:20.1]} 28... Nxd5 {[%clk 0:00:21.5]} 29. Ra1
{[%clk 0:00:20.6]} 29... Nb4 {[%clk 0:00:21.8]} 30. a7 {[%clk 0:00:20.1]} 30...
Nc6 {[%clk 0:00:22.8]} 31. Rea4 {[%clk 0:00:20.8]} 31... Bc5 {[%clk 0:00:22.4]}
32. Ke4 {[%clk 0:00:22.1]} 32... Rxa7 {[%clk 0:00:21.3]} 33. Rxa7 {[%clk
0:00:21.1]} 33... Bxa7 {[%clk 0:00:23.2]} 34. Kd5 {[%clk 0:00:21.7]} 34... Nb4+
{[%clk 0:00:23.6]} 35. Kc4 {[%clk 0:00:22.9]} 35... Nc6 {[%clk 0:00:22.8]} 36.
Kb5 {[%clk 0:00:22.8]} 36... Nd4+ {[%clk 0:00:23.5]} 37. Kc4 {[%clk 0:00:24]}
37... Bb6 {[%clk 0:00:24.7]} 38. Rd1 {[%clk 0:00:22.8]} 38... Nf3 {[%clk
0:00:25.1]} 39. Kd5 {[%clk 0:00:22.5]} 39... Nxh4 {[%clk 0:00:25.3]} 40. b4
{[%clk 0:00:22.6]} 40... Bxf2 {[%clk 0:00:22.9]} 41. b5 {[%clk 0:00:22.5]} 41...
Bb6 {[%clk 0:00:23.8]} 42. Ke6 {[%clk 0:00:22.8]} 42... h5 {[%clk 0:00:22.2]}
43. Rh1 {[%clk 0:00:22]} 43... g5 {[%clk 0:00:21]} 44. Kf6 {[%clk 0:00:21.2]}
44... Be3 {[%clk 0:00:21.1]} 45. Re1 {[%clk 0:00:17.8]} 45... Bf4 {[%clk
0:00:20.7]} 46. Re8+ {[%clk 0:00:17.5]} 46... Kh7 {[%clk 0:00:21.2]} 47. Re7+
{[%clk 0:00:18.9]} 47... Kh6 {[%clk 0:00:22.2]} 48. Re8 {[%clk 0:00:20.3]} 48...
Kh7 {[%clk 0:00:19.3]} 49. Re7+ {[%clk 0:00:21.2]} 49... Kh6 {[%clk 0:00:20]}
50. Re8 {[%clk 0:00:22.4]} 50... Ng6 {[%clk 0:00:19.3]} 51. Rg8 {[%clk
0:00:22.1]} 51... Be5+ {[%clk 0:00:19.7]} 52. Kf7 {[%clk 0:00:23.1]} 52... Nh8+
{[%clk 0:00:16.6]} 53. Ke6 {[%clk 0:00:22.7]} 53... Bd4 {[%clk 0:00:15.8]} 54.
Rd8 {[%clk 0:00:20.7]} 54... Bg7 {[%clk 0:00:15.6]} 55. Rc8 {[%clk 0:00:21]}
55... g4 {[%clk 0:00:16.3]} 56. Rxc7 {[%clk 0:00:22.2]} 56... g3 {[%clk
0:00:17.4]} 57. Rc2 {[%clk 0:00:22.3]} 57... Bd4 {[%clk 0:00:15.7]} 58. Kf5
{[%clk 0:00:21.4]} 58... Nf7 {[%clk 0:00:13.2]} 59. b6 {[%clk 0:00:21.4]} 59...
Bxb6 {[%clk 0:00:10.4]} 60. Rc6+ {[%clk 0:00:22]} 60... Kg7 {[%clk 0:00:10.5]}
61. Rxb6 {[%clk 0:00:23.6]} 61... g2 {[%clk 0:00:10.2]} 62. Rb1 {[%clk
0:00:24.2]} 62... h4 {[%clk 0:00:07.8]} 63. Kg4 {[%clk 0:00:24.6]} 63... Ne5+
{[%clk 0:00:07.5]} 64. Kf4 {[%clk 0:00:24.9]} 64... h3 {[%clk 0:00:07.2]} 65.
Kg3 {[%clk 0:00:21.9]} 65... Kf6 {[%clk 0:00:04.2]} 66. Kxh3 {[%clk 0:00:22.9]}
66... Nf3 {[%clk 0:00:02.9]} 67. Kxg2 {[%clk 0:00:24.4]} 67... Ne5 {[%clk
0:00:04.2]} 68. Rb5 {[%clk 0:00:25.2]} 68... Ke6 {[%clk 0:00:05.5]} 69. Kg3
{[%clk 0:00:26]} 69... Kd6 {[%clk 0:00:06.7]} 70. Kf4 {[%clk 0:00:27.1]} 70...
Nd3+ {[%clk 0:00:06.6]} 71. Ke4 {[%clk 0:00:27.9]} 71... Nc5+ {[%clk 0:00:07.9]}
72. Kd4 {[%clk 0:00:29.1]} 72... Ne6+ {[%clk 0:00:08.7]} 73. Kc4 {[%clk
0:00:30.7]} 73... Kc6 {[%clk 0:00:06.7]} 74. Rh5 {[%clk 0:00:30.2]} 74... Kd6
{[%clk 0:00:07]} 75. Rf5 {[%clk 0:00:30.9]} 75... Kc6 {[%clk 0:00:07.3]} 76. Rd5
{[%clk 0:00:32.1]} 76... Nc7 {[%clk 0:00:07.2]} 77. Rd2 {[%clk 0:00:32.1]} 77...
Ne6 {[%clk 0:00:07.4]} 78. Rd1 {[%clk 0:00:30.6]} 78... Nc7 {[%clk 0:00:07.2]}
79. Rh1 {[%clk 0:00:31.6]} 79... Kd6 {[%clk 0:00:06.8]} 80. Rh6+ {[%clk
0:00:32.5]} 80... Ne6 {[%clk 0:00:08.2]} 81. Rg6 {[%clk 0:00:32.7]} 81... Ke5
{[%clk 0:00:08.9]} 82. Kc3 {[%clk 0:00:34.3]} 82... Kf5 {[%clk 0:00:09.3]} 83.
Rg2 {[%clk 0:00:35.1]} 83... Ke5 {[%clk 0:00:10.2]} 84. Kc4 {[%clk 0:00:35.8]}
84... Kf5 {[%clk 0:00:10.2]} 85. Rf2+ {[%clk 0:00:36.5]} 85... Nf4 {[%clk
0:00:09.8]} 86. Kd4 {[%clk 0:00:35.5]} 86... Kg4 {[%clk 0:00:10.8]} 87. Ke4
{[%clk 0:00:36.5]} 87... Nh3 {[%clk 0:00:10.8]} 88. Rg2+ {[%clk 0:00:37.4]}
88... Kh4 {[%clk 0:00:11.5]} 89. Rg8 {[%clk 0:00:37.7]} 89... Kh5 {[%clk
0:00:09.5]} 90. Kf5 {[%clk 0:00:37.9]} 90... Kh4 {[%clk 0:00:09.5]} 91. Rg7
{[%clk 0:00:37.6]} 91... Nf2 {[%clk 0:00:06.7]} 92. Kf4 {[%clk 0:00:36.2]} 92...
Nh3+ {[%clk 0:00:05.1]} 93. Kf5 {[%clk 0:00:35.2]} 93... Nf2 {[%clk 0:00:05.9]}
94. Rg2 {[%clk 0:00:35.4]} 94... Nh3 {[%clk 0:00:03.5]} 95. Ke4 {[%clk
0:00:36.3]} 95... Ng5+ {[%clk 0:00:03.3]} 96. Ke3 {[%clk 0:00:37.4]} 96... Nh3
{[%clk 0:00:02.4]} 97. Rg8 {[%clk 0:00:38.3]} 1-0

[Event "*** Qualifier 2: Titled Tuesday 3|2 Blitz"]
[Site "Chess.com"]
[Date "2017.04.11"]
[Round "6"]
[White "OparinGrigoriy"]
[Black "GeorgMeier"]
[Result "1/2-1/2"]
[WhiteElo "2658"]
[BlackElo "2710"]
[TimeControl "180+2"]
[EndTime "14:18:06 PDT"]
[Termination "Game drawn by repetition"]

1. Nf3 {[%clk 0:03:02]} 1... d5 {[%clk 0:03:00.9]} 2. g3 {[%clk 0:03:03.4]} 2...
Bg4 {[%clk 0:03:01.6]} 3. Bg2 {[%clk 0:03:04.8]} 3... e6 {[%clk 0:03:03]} 4. c4
{[%clk 0:03:05.2]} 4... c6 {[%clk 0:03:03.8]} 5. cxd5 {[%clk 0:03:06.5]} 5...
Bxf3 {[%clk 0:03:04.5]} 6. Bxf3 {[%clk 0:03:08.4]} 6... cxd5 {[%clk 0:03:06.4]}
7. O-O {[%clk 0:03:09.2]} 7... Nc6 {[%clk 0:03:07.8]} 8. d4 {[%clk 0:03:10.9]}
8... Nf6 {[%clk 0:03:09]} 9. e3 {[%clk 0:03:11.9]} 9... Be7 {[%clk 0:03:04]} 10.
Nc3 {[%clk 0:03:13.3]} 10... O-O {[%clk 0:03:05]} 11. Qe2 {[%clk 0:03:14.9]}
11... Rc8 {[%clk 0:03:03.2]} 12. Bd2 {[%clk 0:03:16.3]} 12... Nd7 {[%clk
0:03:04.4]} 13. Rfc1 {[%clk 0:03:17.6]} 13... Nb6 {[%clk 0:03:05.5]} 14. Be1
{[%clk 0:03:19.3]} 14... Qd7 {[%clk 0:03:06.8]} 15. Bg2 {[%clk 0:03:20.2]} 15...
a6 {[%clk 0:03:07.7]} 16. Rab1 {[%clk 0:03:20.9]} 16... Rc7 {[%clk 0:03:08.9]}
17. Qd1 {[%clk 0:03:20.4]} 17... Rfc8 {[%clk 0:03:09.3]} 18. Ne2 {[%clk
0:03:21.7]} 18... Nc4 {[%clk 0:03:08.8]} 19. a3 {[%clk 0:03:16.8]} 19... b5
{[%clk 0:03:07]} 20. Nf4 {[%clk 0:03:17.6]} 20... a5 {[%clk 0:02:57.8]} 21. Nd3
{[%clk 0:03:18.7]} 21... a4 {[%clk 0:02:59]} 22. Qe2 {[%clk 0:03:08.1]} 22... h6
{[%clk 0:02:56.8]} 23. h4 {[%clk 0:03:08.1]} 23... Rb8 {[%clk 0:02:54.7]} 24. h5
{[%clk 0:03:09]} 24... Rcb7 {[%clk 0:02:47.6]} 25. Ra1 {[%clk 0:03:05]} 25...
Rc7 {[%clk 0:02:41]} 26. Rc2 {[%clk 0:03:04.1]} 26... Rbc8 {[%clk 0:02:37.8]}
27. Rac1 {[%clk 0:02:59.6]} 27... Bd6 {[%clk 0:02:38.9]} 28. Bf3 {[%clk
0:02:59.2]} 28... Qe7 {[%clk 0:02:37.2]} 29. Kg2 {[%clk 0:03:00.2]} 29... Qd7
{[%clk 0:02:29]} 30. Kg1 {[%clk 0:03:00.1]} 30... Qe7 {[%clk 0:02:30.4]} 31. Kg2
{[%clk 0:03:01.5]} 31... Qd7 {[%clk 0:02:31.9]} 32. Kg1 {[%clk 0:03:01.7]} 32...
Qe7 {[%clk 0:02:33.2]} 1/2-1/2

[Event "*** Qualifier 2: Titled Tuesday 3|2 Blitz"]
[Site "Chess.com"]
[Date "2017.04.11"]
[Round "6"]
[White "andreimacovei2000"]
[Black "XiaoKangZhong"]
[Result "1-0"]
[WhiteElo "2392"]
[BlackElo "1939"]
[TimeControl "180+2"]
[EndTime "14:18:28 PDT"]
[Termination "andreimacovei2000 won by resignation"]

1. e4 {[%clk 0:03:00.5]} 1... c5 {[%clk 0:03:00.6]} 2. Nf3 {[%clk 0:03:00.8]}
2... d6 {[%clk 0:03:01.5]} 3. Bb5+ {[%clk 0:03:00.4]} 3... Bd7 {[%clk
0:03:02.1]} 4. Bxd7+ {[%clk 0:03:00.9]} 4... Qxd7 {[%clk 0:03:04]} 5. O-O {[%clk
0:03:01.5]} 5... Nf6 {[%clk 0:03:04.4]} 6. Re1 {[%clk 0:03:01.8]} 6... Nc6
{[%clk 0:03:04.8]} 7. c4 {[%clk 0:03:02.9]} 7... e5 {[%clk 0:03:05.2]} 8. Nc3
{[%clk 0:03:02.3]} 8... Be7 {[%clk 0:03:06.1]} 9. d3 {[%clk 0:03:02.5]} 9... O-O
{[%clk 0:03:06.8]} 10. Bg5 {[%clk 0:03:03.7]} 10... Ne8 {[%clk 0:03:06.4]} 11.
Be3 {[%clk 0:03:03.9]} 11... f5 {[%clk 0:03:06.7]} 12. Nd5 {[%clk 0:03:03.1]}
12... f4 {[%clk 0:03:02.1]} 13. Bd2 {[%clk 0:03:02.4]} 13... Nf6 {[%clk
0:03:01.4]} 14. Bc3 {[%clk 0:02:59.3]} 14... h6 {[%clk 0:02:52.3]} 15. Rb1
{[%clk 0:02:59.4]} 15... Kh7 {[%clk 0:02:51.9]} 16. b4 {[%clk 0:03:00.5]} 16...
cxb4 {[%clk 0:02:50.3]} 17. Nxb4 {[%clk 0:02:59.2]} 17... Nxb4 {[%clk
0:02:49.7]} 18. Bxb4 {[%clk 0:03:00.6]} 18... g5 {[%clk 0:02:49.4]} 19. d4
{[%clk 0:03:01.6]} 19... g4 {[%clk 0:02:46.1]} 20. Nh4 {[%clk 0:03:02.6]} 20...
Nxe4 {[%clk 0:02:32.7]} 21. Rxe4 {[%clk 0:03:02.3]} 21... Bxh4 {[%clk
0:02:32.6]} 22. dxe5 {[%clk 0:03:03.1]} 22... Qf5 {[%clk 0:02:32.6]} 23. Qd5
{[%clk 0:03:01.8]} 23... Rae8 {[%clk 0:02:18.7]} 24. Rbe1 {[%clk 0:03:00]} 24...
g3 {[%clk 0:02:13.1]} 25. hxg3 {[%clk 0:02:59.1]} 25... Bxg3 {[%clk 0:02:02.2]}
26. exd6 {[%clk 0:03:00.2]} 26... Qh5 {[%clk 0:01:47.6]} 27. Qxh5 {[%clk
0:02:59.8]} 1-0